Cogmind - Beta 16 --- EXPLORER MODE // 2025.12.24 @ 14:29:57 Player: K.K.Y. Result: Destroyed by Y3-Z69(R) with Subdweller Laser Performance ------------- Evolutions (0) 0 Regions Visited (3) 600 Robots Destroyed (30) 150 Value Destroyed (516) 516 Prototype IDs (17) 340 Alien Tech Used (0) 0 Bonus (65) 65 TOTAL SCORE: 1671 Bonus ------- Follower Combat Kills 65 Cogmind --------- Core Integrity 0/250 Matter 300/300 Energy 160/160 System Corruption 0% Temperature Cool (6) Movement Treading (160) Location -10/Subcaves Parts ------- > --- POWER (1) -------- Light Nuclear Core > --- PROPULSION (2) --- Light Treads Spiked Treads > --- UTILITY (3) ------ Medium Storage Unit Structural Scanner > --- WEAPON (2) ------- Particle Gun Makeshift Spear > --- INVENTORY (10) --- High-capacity Storage Unit Humpback Core Shielding Light Armor Plating Makeshift System Restoration Module Mining Laser Ripper Peak State ------------ > --- POWER ------------ Light Nuclear Core > --- PROPULSION ------- Light Treads Spiked Treads > --- UTILITY ---------- Medium Storage Unit Structural Scanner Sensor Array > --- WEAPON ----------- Particle Gun Makeshift Spear > --- INVENTORY -------- High-capacity Storage Unit Humpback Core Shielding Light Armor Plating Mining Laser Ripper [Rating: 16] Favorites ----------- Power Light Nuclear Core Engine Ion Engine Power Core Light Nuclear Core Propulsion Light Treads Treads Light Treads Utility Sensor Array Device Sensor Array Storage Medium Storage Unit Processor Signal Interpreter Weapon Particle Gun Energy Gun Particle Gun Ballistic Gun Light Assault Rifle Piercing Weapon Makeshift Spear Build | -11 -10 -10 -10 ------- Run | Yrd Mat Min Sub Slots Evolved 1 | . 1 . . Power . | . . . . Propulsion . | . . . . Utility 1 | . 1 . . Weapon . | . . . . Parts Attached 16 | 7 4 3 2 Power 3 | 1 2 . . Engine 1 | 1 . . . Core 2 | . 2 . . Reactor . | . . . . Propulsion 5 | 2 . 2 1 Treads 5 | 2 . 2 1 Leg . | . . . . Wheel . | . . . . Hover . | . . . . Flight . | . . . . Utility 4 | 2 1 . 1 Device 2 | 1 1 . . Storage 1 | . . . 1 Processor 1 | 1 . . . Hackware . | . . . . Protection . | . . . . Artifact . | . . . . Weapon 4 | 2 1 1 . Energy Gun 2 | 1 1 . . Energy Cannon . | . . . . Ballistic Gun 1 | 1 . . . Ballistic Cannon . | . . . . Launcher . | . . . . Special Weapon . | . . . . Impact Weapon . | . . . . Slashing Weapon . | . . . . Piercing Weapon 1 | . . 1 . Special Melee Weapon . | . . . . Unidentified Prototypes . | . . . . Parts Lost 1 | . . . 1 Power . | . . . . Propulsion . | . . . . Utility 1 | . . . 1 Weapon . | . . . . Highest Loss Streak 1 | . . . 1 To Critical Strikes . | . . . . Average Backups 5 | 3 4 5 6 Power . | . . . . Propulsion . | . . . . Utility 3 | 2 3 4 4 Weapon 1 | . 1 1 1 Tool/Special . | . . . . Unused Backups 8 | . . 1 7 Power . | . . . . Propulsion . | . . . . Utility 5 | . . . 5 Weapon 3 | . . 1 2 Tool/Special . | . . . . Average Slot Usage (%) 96 | . 86 100 99 Engine 2 | . 9 . . Core 9 | . 1 12 12 Treads 24 | . 21 25 25 Device 22 | . 15 25 24 Storage 2 | . . . 6 Processor 9 | . 12 12 5 Energy Gun 11 | . 11 12 12 Ballistic Gun 4 | . 11 3 . Piercing Weapon 7 | . . 8 12 Peak Build Rating 16 | 7 11 14 16 Average Rating 12 | 4 7 13 15 On Entrance 8 | . 7 11 14 Avg Prop Armor Cover (%) . | . . . . Naked Turns . | . . . . Heaviest Build 22 | 8 11 12 22 Greatest Support 40 | 40 40 40 40 Greatest Overweight (x) 1 | . 1 . . Average Overweight (x) . | . . . . Largest Inventory Capacity 10 | 5 5 5 10 Average Capacity 6 | 5 5 5 7 Most Carried 8 | 5 5 5 8 Average Carried 5 | 3 4 5 6 Final Capacity 10 | 5 5 5 10 Final Carried 8 | 4 5 5 8 Class Distribution -------------------- 42% | Hacker-Assassin 40% | Hacker-Mutant 16% | Hacker-Skirmisher Dominant Class ---------------- Hacker-Mutant | -10/Materials Hacker-Assassin | -10/Mines Hacker-Mutant | -10/Subcaves Resources | -11 -10 -10 -10 ----------- Run | Yrd Mat Min Sub Matter Collected 520 | 238 223 39 20 Remotely . | . . . . Salvage Created 833 | 125 343 169 196 Parts 79 | 8 31 25 15 Haulers Intercepted . | . . . . Recyclers Shooed 1 | 1 . . . Parts Field Recycled . | . . . . Retrieved Matter . | . . . . Parts Self-Destructed . | . . . . Prevented . | . . . . Parts Restored . | . . . . Kills | -11 -10 -10 -10 ------- Run | Yrd Mat Min Sub Combat Hostiles Destroyed 19 | . 6 8 5 Melee 7 | . . 4 3 Guns 12 | . 6 4 2 Classes Destroyed 7 | 2 4 . 1 Worker 1 | . 1 . . Builder 5 | . 4 1 . Tunneler 4 | 2 . 2 . Recycler 1 | 1 . . . Swarmer 10 | . 2 8 . Grunt 5 | . 4 . 1 Subdweller 4 | . . . 4 Best Kill Streak 4 | 3 4 2 1 Combat Bots Only 4 | . 4 2 1 Max Kills in Single Turn 1 | 1 1 1 1 Gunslinging . | . . . . Exploded . | . . . . Melee 1 | . . 1 1 Uniques/NPCs Destroyed . | . . . . Combat | -11 -10 -10 -10 -------- Run | Yrd Mat Min Sub Hostile Shots Fired 127 | . 47 29 51 Missed 36 | . 14 9 13 Hits 91 | . 33 20 38 Projectile 91 | . 33 20 38 Critical Strikes 1 | . 1 . . Damage Taken 841 | . 230 90 521 Core 258 | . 47 24 187 Absorbed by Shields . | . . . . Ignored by Resistances 530 | . 151 67 312 Core Remaining (%) 100 | 100 . . . Volleys Fired 78 | 9 42 9 18 Largest 2 | 2 2 2 1 Hottest 85 | 60 60 85 65 Shots Fired 125 | 18 71 18 18 Gun 125 | 18 71 18 18 Cannon . | . . . . Launcher . | . . . . Special . | . . . . Kinetic 60 | 9 42 9 . Thermal 65 | 9 29 9 18 Explosive . | . . . . Electromagnetic . | . . . . Robot Hit Streak 19 | 10 19 14 12 Robot Miss Streak 2 | 1 2 1 1 Penetration Max . | . . . . Secondary Targets 2 | . 1 1 . Max Gunslinging Chain 1 | . 1 1 . Shots Hit Robots 129 | 17 55 27 30 Core Hits 52 | 6 24 12 10 Critical Kills . | . . . . Critical Parts Destroyed . | . . . . Critical Strikes 2 | . . . 2 Impale 2 | . . . 2 Melee Attacks 47 | . . 12 35 Impact . | . . . . Slashing . | . . . . Piercing 47 | . . 12 35 Sneak Attacks 4 | . . 4 . Combat Hostiles . | . . . . Follow-up Attacks . | . . . . Damage Inflicted 1939 | 167 503 652 617 Guns 1050 | 167 503 184 196 Cannons . | . . . . Explosions . | . . . . Melee 889 | . . 468 421 Ramming . | . . . . Kinetic 359 | 76 226 57 . Thermal 691 | 91 277 127 196 Explosive . | . . . . Electromagnetic . | . . . . Impact . | . . . . Slashing . | . . . . Piercing 889 | . . 468 421 Highest Corruption . | . . . . Average Corruption . | . . . . Corruption Purged . | . . . . Corruption Blocked . | . . . . Overload Shots . | . . . . Overflow Damage 37 | . . 37 . Projectiles . | . . . . Explosions . | . . . . Melee 37 | . . 37 . Knockbacks . | . . . . Impact . | . . . . Kinetic . | . . . . Secondary . | . . . . Self-Inflicted Damage . | . . . . Shots . | . . . . Rammed . | . . . . Targets Rammed . | . . . . Kicked . | . . . . Crushed . | . . . . Highest Temperature 186 | 40 141 186 3 Average Temperature 51 | 22 53 67 3 Received Heat Transfer 351 | . 183 . 168 Siege Activations . | . . . . Martial Activations . | . . . . Shielding Activations . | . . . . Robots Disrupted . | . . . . Combat Hostiles . | . . . . Robots Corrupted . | . . . . Combat Hostiles . | . . . . Parts Fried . | . . . . Impact Corruptions . | . . . . Robots Melted . | . . . . Combat Hostiles . | . . . . Parts Melted 1 | . . 1 . Heat Transferred 1602 | 200 625 296 481 Parts Sabotaged . | . . . . Parts Stolen . | . . . . Parts Stripped . | . . . . Power Chain Reactions . | . . . . Alert | -11 -10 -10 -10 ------- Run | Yrd Mat Min Sub Maximum Alert Level . | . . . . Low Security (%) 100 | 100 100 100 . Level 1 . | . . . . Level 2 . | . . . . Level 3 . | . . . . Level 4 . | . . . . Level 5 . | . . . . High Security . | . . . . Max Security . | . . . . Peak Influence 95 | 5 95 55 . Initial 13 | . 2 13 . Average 8 | 1 9 8 . Influence Increases 480 | 15 183 230 52 Destroy 0b10 Robot/C 320 | . 120 160 40 Destroy 0b10 Robot/NC 55 | 15 25 15 . Destroy Leader 80 | . 30 40 10 Allied During Kill 2 | . . . 2 Successful Hack 8 | . 8 . . Lose Combat Pursuer 15 | . . 15 . Influence Decreases 480 | 10 138 280 52 Entered New Map 40 | . 3 37 . Time Decay 438 | 10 133 243 52 Purge Threat 2 | . 2 . . Squads Dispatched . | . . . . Investigation . | . . . . Extermination . | . . . . Reinforcement . | . . . . Assault . | . . . . Garrison . | . . . . Intercept . | . . . . Searches Triggered . | . . . . Construction Impeded . | . . . . Haulers Reinforced . | . . . . Active Scanning Responses . | . . . . Cargo Convoy Interrupts . | . . . . Stealth | -11 -10 -10 -10 --------- Run | Yrd Mat Min Sub Distress Signals . | . . . . Communications Jammed . | . . . . Distress Signals . | . . . . Times Spotted 27 | . 9 8 10 Peak Tracking Total 3 | . 3 2 3 Tactical Retreats 1 | . . 1 . Traps | -11 -10 -10 -10 ------- Run | Yrd Mat Min Sub Traps Triggered 5 | . 4 . 1 Indirectly . | . . . . Trap Hack Attempts . | . . . . Triggered . | . . . . Disarmed . | . . . . Reprogrammed . | . . . . Reused . | . . . . Traps Extracted . | . . . . Installed . | . . . . Triggered . | . . . . Machines | -11 -10 -10 -10 ---------- Run | Yrd Mat Min Sub Machines Disabled 1 | . . . 1 Max in Single Turn 1 | . . . 1 Machines Repaired . | . . . . Machines Dismantled . | . . . . Machines Sabotaged . | . . . . Overloaded Fab Kills . | . . . . Hacking | -11 -10 -10 -10 --------- Run | Yrd Mat Min Sub Machines Accessed 5 | . 4 . 1 Terminals 4 | . 4 . . Fabricators . | . . . . Repair Stations . | . . . . Recycling Units . | . . . . Scanalyzers . | . . . . Garrison Access . | . . . . Total Hacks 14 | . 13 . 1 Successful 11 | . 10 . 1 Failed 3 | . 3 . . Catastrophic . | . . . . Database Lockouts . | . . . . Manual 12 | . 12 . . Terminals 13 | . 13 . . Fabricators . | . . . . Repair Stations . | . . . . Recycling Units . | . . . . Scanalyzers . | . . . . Garrison Access . | . . . . Terminal Hacks 7 | . 6 . 1 Prototype ID Bank 5 | . 5 . . Unreport Threat 1 | . 1 . . Proto ID Catalog 1 | . . . 1 Fabricator Hacks . | . . . . Repair Station Hacks . | . . . . Recycling Unit Hacks . | . . . . Scanalyzer . | . . . . Garrison Access Hacks . | . . . . Unauthorized Hacks 3 | . 3 . . Terminals 3 | . 3 . . Botnet 3 | . 3 . . Fabricators . | . . . . Repair Stations . | . . . . Recycling Units . | . . . . Scanalyzers . | . . . . Garrison Access . | . . . . Data Cores Recovered . | . . . . Used . | . . . . Hacking Detections 4 | . 4 . . Full Trace Events . | . . . . Feedback Events . | . . . . Feedback Blocked . | . . . . Robot Schematics Acquired . | . . . . Robots Built . | . . . . Authchips . | . . . . Time . | . . . . Total Robot Build Rating . | . . . . Part Schematics Acquired . | . . . . Parts Built . | . . . . Authchips . | . . . . Time . | . . . . Total Part Build Rating . | . . . . Part Studies Acquired . | . . . . Parts Repaired . | . . . . Time . | . . . . Parts Recycled . | . . . . Recycled Matter . | . . . . Retrieved Matter . | . . . . Retrieved Components . | . . . . Parts Scanalyzed . | . . . . Part Schematics Acquired . | . . . . Parts Damaged . | . . . . Bothacking | -11 -10 -10 -10 ------------ Run | Yrd Mat Min Sub Used RIF Installer . | . . . . Robots Hacked . | . . . . Non-combat . | . . . . Combat . | . . . . Robot Hacks Applied . | . . . . Relay Couplers Released . | . . . . Fabnet Peak Effective % . | . . . . Robots Rewired . | . . . . Allies Hacked . | . . . . Hacks Repelled . | . . . . Allies | -11 -10 -10 -10 -------- Run | Yrd Mat Min Sub Total Allies 3 | . . 3 . Largest Group 3 | . . 3 3 Highest-Rated Group 40 | . . 40 40 Highest-Rated Ally 16 | . . 16 16 Total Orders . | . . . . Ally Attacks 22 | . . . 22 Total Damage 233 | . . . 233 Kills 2 | . . . 2 Allies Corrupted . | . . . . Allies Melted . | . . . . Intel | -11 -10 -10 -10 ------- Run | Yrd Mat Min Sub Active Infowar (turns) 3189 | 89 758 1034 1308 Sensors 3170 | 89 758 1034 1289 Structural 2579 | . 237 1034 1308 Robot Analysis Total . | . . . . Derelict Logs Recovered 2 | . . 1 1 Drone Launches . | . . . . Drone Recoveries . | . . . . Exploration | -11 -10 -10 -10 ------------- Run | Yrd Mat Min Sub Turns Passed 3219 | 119 758 1034 1308 Spaces Moved 1755 | 53 365 597 740 Core 12 | 11 1 . . Treads 1743 | 42 364 597 740 Legs . | . . . . Wheels . | . . . . Hover . | . . . . Flight . | . . . . Fastest Speed 50 | 50 100 160 160 Average Speed 159 | 137 159 160 160 Slowest Speed 160 | 160 160 160 160 Overloaded Moves . | . . . . Propulsion Burnouts . | . . . . Robots Hopped . | . . . . Potential Cave-ins . | . . . . Cave-ins Triggered . | . . . . Exploration Rate (%) 52 | 5 54 99 52 Regions Visited 3 Branch Regions 2 Pre-discovered Areas 1 | . . 1 . Known Exits Taken 3 | 1 1 1 . Unknown Exits Taken . | . . . . Scrap Searched 9 | . . . 9 Spaces Dug 2 | . . . 2 Terrain Destroyed 2 | . . . 2 Melee 2 | . . . 2 Projectile . | . . . . AOE . | . . . . Terrain Rammed . | . . . . Walls Destroyed . | . . . . Machines Disabled . | . . . . Actions | -11 -10 -10 -10 --------- Run | Yrd Mat Min Sub Total 2018 | 83 475 650 810 Wait 87 | 4 48 25 10 Move 1752 | 52 364 596 740 Hop . | . . . . Pick Up 19 | 11 4 1 3 Fast Attach 9 | . 8 1 . Attach 11 | 7 3 . 1 Detach 1 | . . . 1 Swap 6 | . 3 2 1 Drop 8 | . 3 4 1 Fire 78 | 9 42 9 18 Melee 47 | . . 12 35 Ram . | . . . . Kick . | . . . . Crush . | . . . . Escape Stasis . | . . . . Rewire . | . . . . Trap . | . . . . Miscellaneous . | . . . . Route ------- -11/Scrapyard -10/Materials (discovered 3 exits: *Mat x2 / *Min) -10/Mines (discovered 4 exits: *Mat x2 / *Exi / *Sub) -10/Subcaves (discovered 2 exits: *Mat x2) History --------- Turn | Location | Event 2 | -11/Scrapyard | Met Revision 17 9 | -11/Scrapyard | Identified exit to Materials 9 | -11/Scrapyard | Discovered exit to Materials (range 16) 120 | -11/Scrapyard | Entered Materials 120 | -10/Materials | Evolved 1 slot: Utility x1 311 | -10/Materials | Build established: Hacker-Mutant 505 | -10/Materials | Identified exit to Materials 505 | -10/Materials | Discovered exit to Materials (range 5) 524 | -10/Materials | Identified exit to Mines 524 | -10/Materials | Discovered exit to Mines (range 15) 758 | -10/Materials | Discovered exit to Materials (range 15) 878 | -10/Materials | Entered Mines 941 | -10/Mines | Build established: Hacker-Skirmisher 1098 | -10/Mines | Deemed a non-threat by the Exiles lab entrance 1098 | -10/Mines | Identified exit to Exiles 1098 | -10/Mines | Discovered exit to Exiles (range 5) 1162 | -10/Mines | Learned location of Zion (-6) 1175 | -10/Mines | A weapon hastily lodged in a ceiling crevice suddenly fell to the ground 1297 | -10/Mines | Discovered exit to Materials (range 8) 1342 | -10/Mines | Identified exit to Subcaves 1342 | -10/Mines | Discovered exit to Subcaves (range 7) 1342 | -10/Mines | Discovered exit to Materials (range 15) 1482 | -10/Mines | Assisted by bots powering up and referring to "LRC-V3" 1485 | -10/Mines | Build established: Hacker-Assassin 1912 | -10/Mines | Entered Subcaves 1912 | -10/Subcaves | Accompanied by 3 allies 1945 | -10/Subcaves | Shifting Twisted Machinery released Sub. Optics 1973 | -10/Subcaves | Shifting Twisted Machinery released Sub. Monowheel 2025 | -10/Subcaves | Shifting Twisted Machinery released Sub. Beam Cannon 2035 | -10/Subcaves | Shifting Twisted Machinery released Sub. Shrapnel Launcher 2113 | -10/Subcaves | A swath of the cavern ceiling suddenly collapsed 2268 | -10/Subcaves | Visited 4L-MR0's lab 2441 | -10/Subcaves | Identified exit to Materials 2441 | -10/Subcaves | Discovered exit to Materials (range 9) 2647 | -10/Subcaves | Core integrity fell below 50% 2763 | -10/Subcaves | Discovered exit to Materials (range 8) 2856 | -10/Subcaves | Build established: Hacker-Mutant 2877 | -10/Subcaves | Learned Materials trap positions 3206 | -10/Subcaves | Core integrity fell below 20% 3220 | -10/Subcaves | Destroyed by Y3-Z69(R) with Subdweller Laser Last Messages --------------- 02622_ Spikes shoot up from the floor. 02622_ Trooper 1b suffers critical hit (Impale). 02628_ Mercenary 1a triggered Piercing Trap. 02628_ Spikes shoot up from the floor. 02628_ Mercenary 1a suffers critical hit (Impale). 02628_ Mercenary 1a destroyed. 02646_ Triggered Shrapnel Trap. 02646_ An expanding cloud of shrapnel blasts out in all directions. 02763_ EXIT=FOUND: MATERIALS 02829_ 4Y-2KG(R) suffers critical hit (Impale). 02838_ 4Y-2KG(R) destroyed. 02877_ Acquired derelict log, extracted data. Data stored: Materials trap records. 03112_ Trooper 1a destroyed. 03119_ Trooper 1b destroyed. 03139_ EL-8S1(R) suffers critical hit (Impale). 03150_ EL-8S1(R) destroyed. 03201_ Sensor Array destroyed. Map ----- +----------------------------------------------------+ | # ##????????????????#### ######### | | ######???????????????##### ### ###???#### | | ########?????????????#### ##########??## | | ###### ####????########### ###########?## | | ##### ################# #### ###### | | ### ######## # ### ### ## ##### | | #### "" ### ## #### | | ### " " #### ##### | | ### ## " #" # ##### ###?## | | #### ### ""## ## ###### ## ###?## | | #### ### ## """ ######## ##??## | | ### ### # "" " ######## ##??## | | #### ## ### # "###""""####???#######??## | | ### ## ### #""###"######????######??## | | ! |%[ #######???????????????? | | |= #####?????????????????? | | ####### #####?????????????????? | | ## ######## "" ##?????????????????? | | ### ########"% ##?????????????????? | | #### ## ######## ##?????????????????? | | ## #### ## ###### ###?????????????????? | | ### #### ""#########?????????????????? | | ?####### " ########??????????????????? | | ????## #"" # ###????????????????????? | | ??? ## " R ##????????????????????? | | ?? ## ### " R @ ##????????????????????? | | ??###### ""####"""## ##????????????????????? | | ??##### " #### ####R##????????????????????? | | ????## " ### #### ##????????????????????? | | ???## "###" #### #????????????????????? | | ???## %###"" #### ????????????????????? | | ???## ##?" #### ???????????????????? | | ???????? %### ??#### ??????????????????? | | ??????????? #### ????## ?????????????????? | | ???????????? #### ?????? ????????????????? | | ???????????????#" "??????? ???????????????? | | ????????????????????????????? ???????????????? | | ????????????????????????????? ???????????????? | | ????????????????????????????? ??????????????? | | ?????????????????????????????? ????????????????? | | ?????????????????????????????? ????????????????? | | ?????????????????????????????? ??????????????????? | | ?????????????????????????????????????????????????? | | ?????????????????????????????????????????????????? | | ?????????????????????????????????????????????????? | | ?????????????????????????????????????????????????? | | ?????????????????????????????????????????????????? | | ?????????????????????????????????????????????????? | | ?????????????????????????????????????????????????? | | ?????????????????????????????????????????????????? | +----------------------------------------------------+ Best States ------------- Heat Dissipation 25 Energy Generation 14 Energy Capacity 250 Matter Stores 300 Matter Capacity 300 Sight Range 16 Robot Scan Range 14 Terrain Scan Density 10 Resistance: KI 35 Resistance: TH 35 Resistance: EX 35 Resistance: EM 35 Resistance: I 35 Resistance: S 35 Resistance: P 35 Evasion (%) 50 Recoil Reduction 2 Offensive Hacking 20 Item Schematics ----------------- None Robot Schematics ------------------ None Fabricated ------------ Nothing Repaired ---------- Nothing Studied --------- None Alien Tech Used ----------------- None Achievements -------------- None Challenges ------------ None Game ------ Seed VampiricSmartbombSuit Manual? 0 Play Time 00:17:27 Cumulative 224.1 hours Start 2025.12.24 @ 14:12:11 End 2025.12.24 @ 14:29:57 Sessions 1 Manual Loads 0 Difficulty Explorer Special Mode None Game No. 342 Rogue 0 Adventurer 0 Explorer 342 Win Type - Total 0 Types 0/0/0/0/0/0/0/0/0/0 Lore% 71 Gallery% 68 Achievement% 53 Wizard Run 0 Options --------- Layout 1 ASCII 0 Keyboard 0 Movement Mouse Keybinds 0 Fullscreen 1 Font 24/Smallcaps Map View 50x35 Zoom Use 0% Tactical HUD 1 Map Filters NONE Filters NONE Steam 1 RUN: f34fd7cb-8baa-47da-93f6-619c3fcdf7cc